[Event "Live Chess"]
[Site "Chess.com"]
[Date "2024.06.01"]
[Round "-"]
[White "Outspanner"]
[Black "NAZRIZ1977"]
[Result "0-1"]
[WhiteElo "1534"]
[BlackElo "2164"]
[TimeControl "300"]
[EndTime "15:45:21 PDT"]
[Termination "NAZRIZ1977 won on time"]

1. Nf3 {[%clk 0:04:55.6]} 1... g6 {[%clk 0:04:58.6]} 2. c4 {[%clk 0:04:52.3]}
2... Bg7 {[%clk 0:04:57.8]} 3. g3 {[%clk 0:04:48.2]} 3... Nf6 {[%clk 0:04:57]}
4. Bg2 {[%clk 0:04:47]} 4... O-O {[%clk 0:04:56.6]} 5. O-O {[%clk 0:04:45.5]}
5... c5 {[%clk 0:04:56.2]} 6. Nc3 {[%clk 0:04:44.3]} 6... d5 {[%clk 0:04:54.9]}
7. cxd5 {[%clk 0:04:37.6]} 7... Nxd5 {[%clk 0:04:53.9]} 8. e4 {[%clk 0:04:30.3]}
8... Nb4 {[%clk 0:04:47.3]} 9. Qe2 {[%clk 0:04:22.7]} 9... Nd3 {[%clk
0:04:44.1]} 10. Ne1 {[%clk 0:04:16.4]} 10... Nxc1 {[%clk 0:04:41.9]} 11. Rxc1
{[%clk 0:04:15.9]} 11... Nc6 {[%clk 0:04:41.3]} 12. Nf3 {[%clk 0:04:12.3]} 12...
Bg4 {[%clk 0:04:38.8]} 13. h3 {[%clk 0:04:10.1]} 13... Nd4 {[%clk 0:04:37.7]}
14. Qe3 {[%clk 0:04:01.9]} 14... Nxf3+ {[%clk 0:04:36.1]} 15. Bxf3 {[%clk
0:03:59.4]} 15... Bxh3 {[%clk 0:04:35.7]} 16. Rfd1 {[%clk 0:03:56.6]} 16... b6
{[%clk 0:04:33]} 17. e5 {[%clk 0:03:51]} 17... Rc8 {[%clk 0:04:28.2]} 18. d4
{[%clk 0:03:41.2]} 18... cxd4 {[%clk 0:04:01.9]} 19. Rxd4 {[%clk 0:03:39]} 19...
Qe8 {[%clk 0:04:00.8]} 20. g4 {[%clk 0:03:33.8]} 20... f6 {[%clk 0:03:49]} 21.
Bd5+ {[%clk 0:03:28.5]} 21... e6 {[%clk 0:03:45.9]} 22. Bf3 {[%clk 0:03:14.7]}
22... fxe5 {[%clk 0:03:43.6]} 23. Rd2 {[%clk 0:03:03]} 23... Rf4 {[%clk
0:03:31.8]} 24. Bb7 {[%clk 0:02:30.3]} 24... Rc7 {[%clk 0:03:18.8]} 25. Qxh3
{[%clk 0:02:28.5]} 25... Rxb7 {[%clk 0:03:15.3]} 26. Rcd1 {[%clk 0:02:16.7]}
26... Rd4 {[%clk 0:03:08.6]} 27. Ne4 {[%clk 0:02:03.9]} 27... Rbd7 {[%clk
0:02:53.3]} 28. Rxd4 {[%clk 0:01:31.7]} 28... Rxd4 {[%clk 0:02:50.8]} 29. Rxd4
{[%clk 0:01:26.2]} 29... exd4 {[%clk 0:02:49.2]} 30. g5 {[%clk 0:01:14.6]} 30...
Qe7 {[%clk 0:02:30.2]} 31. Qg3 {[%clk 0:01:04]} 31... e5 {[%clk 0:02:24.1]} 32.
Qg4 {[%clk 0:01:03]} 32... Qe8 {[%clk 0:02:14.8]} 33. Nd6 {[%clk 0:00:57.3]}
33... Qe7 {[%clk 0:01:36.5]} 34. Qc8+ {[%clk 0:00:51.9]} 34... Bf8 {[%clk
0:01:35.4]} 35. Qc4+ {[%clk 0:00:42.9]} 35... Kg7 {[%clk 0:01:32.6]} 36. Ne4
{[%clk 0:00:35]} 36... h6 {[%clk 0:01:21.1]} 37. Nf6 {[%clk 0:00:33.3]} 37...
hxg5 {[%clk 0:01:17.1]} 38. Qg8+ {[%clk 0:00:31.6]} 38... Kxf6 {[%clk
0:01:16.1]} 39. Qh8+ {[%clk 0:00:23.6]} 39... Bg7 {[%clk 0:01:14.8]} 40. Qh3
{[%clk 0:00:20.9]} 40... e4 {[%clk 0:01:12.8]} 41. Qb3 {[%clk 0:00:18]} 41... e3
{[%clk 0:01:08.6]} 42. Qd5 {[%clk 0:00:08.9]} 42... exf2+ {[%clk 0:01:05.3]} 43.
Kxf2 {[%clk 0:00:06.9]} 43... Qe3+ {[%clk 0:01:04.6]} 44. Kg2 {[%clk 0:00:05.4]}
44... g4 {[%clk 0:00:59.3]} 45. Qd6+ {[%clk 0:00:04.1]} 45... Kg5 {[%clk
0:00:52.4]} 0-1

[Event "Live Chess"]
[Site "Chess.com"]
[Date "2024.06.01"]
[Round "-"]
[White "lyricalschemes"]
[Black "LL220284LL"]
[Result "0-1"]
[WhiteElo "2439"]
[BlackElo "2513"]
[TimeControl "300"]
[EndTime "15:45:30 PDT"]
[Termination "LL220284LL won by resignation"]

1. e4 {[%clk 0:04:58.7]} 1... c5 {[%clk 0:04:57.4]} 2. Nf3 {[%clk 0:04:56.9]}
2... g6 {[%clk 0:04:56.2]} 3. c3 {[%clk 0:04:55.8]} 3... Bg7 {[%clk 0:04:55.2]}
4. d4 {[%clk 0:04:54.3]} 4... cxd4 {[%clk 0:04:55.1]} 5. cxd4 {[%clk 0:04:52.9]}
5... d5 {[%clk 0:04:54.7]} 6. e5 {[%clk 0:04:52.4]} 6... Nh6 {[%clk 0:04:53.2]}
7. h3 {[%clk 0:04:49.1]} 7... Nc6 {[%clk 0:04:51.7]} 8. Bd3 {[%clk 0:04:45.9]}
8... O-O {[%clk 0:04:50.1]} 9. Nc3 {[%clk 0:04:44.5]} 9... Bf5 {[%clk
0:04:48.9]} 10. a3 {[%clk 0:04:41.6]} 10... Bxd3 {[%clk 0:04:46.7]} 11. Qxd3
{[%clk 0:04:41.1]} 11... f6 {[%clk 0:04:37.3]} 12. O-O {[%clk 0:04:32.2]} 12...
fxe5 {[%clk 0:04:36]} 13. dxe5 {[%clk 0:04:30.2]} 13... e6 {[%clk 0:04:34.2]}
14. Bg5 {[%clk 0:04:26.4]} 14... Qd7 {[%clk 0:04:29.7]} 15. Rad1 {[%clk
0:04:23.9]} 15... Nf5 {[%clk 0:04:27.4]} 16. Rfe1 {[%clk 0:04:11.8]} 16... Qc7
{[%clk 0:04:13.3]} 17. Rc1 {[%clk 0:03:45.6]} 17... a6 {[%clk 0:04:08.5]} 18.
Qe2 {[%clk 0:03:28.9]} 18... Rac8 {[%clk 0:04:01.2]} 19. Red1 {[%clk 0:03:26.2]}
19... Qb8 {[%clk 0:03:49.4]} 20. Bf4 {[%clk 0:03:21.4]} 20... Nh4 {[%clk
0:03:36.4]} 21. Nxh4 {[%clk 0:03:11]} 21... Rxf4 {[%clk 0:03:34.4]} 22. g3
{[%clk 0:03:05.9]} 22... Rf7 {[%clk 0:02:59]} 23. f4 {[%clk 0:03:03.5]} 23... g5
{[%clk 0:02:52.1]} 24. Ng2 {[%clk 0:02:45.4]} 24... gxf4 {[%clk 0:02:41.2]} 25.
Nxf4 {[%clk 0:02:41.6]} 25... Re8 {[%clk 0:02:36.3]} 26. Qh5 {[%clk 0:02:35.3]}
26... Qxe5 {[%clk 0:02:32.6]} 27. Qg4 {[%clk 0:02:22.9]} 27... Qe3+ {[%clk
0:02:23.7]} 28. Kh1 {[%clk 0:02:18.5]} 28... Ne5 {[%clk 0:02:21.9]} 29. Qh5
{[%clk 0:02:14.4]} 29... Qxg3 {[%clk 0:02:16.7]} 30. Rf1 {[%clk 0:02:07.6]}
30... Ref8 {[%clk 0:02:08]} 31. Nce2 {[%clk 0:02:03.9]} 31... Qe3 {[%clk
0:02:00.7]} 32. Rc3 {[%clk 0:01:52.5]} 32... Qe4+ {[%clk 0:01:57.3]} 33. Kh2
{[%clk 0:01:36.5]} 33... Ng6 {[%clk 0:01:51.1]} 34. Nxg6 {[%clk 0:01:30.6]}
34... hxg6 {[%clk 0:01:48.2]} 0-1

[Event "Live Chess"]
[Site "Chess.com"]
[Date "2024.06.01"]
[Round "-"]
[White "RichardABates"]
[Black "CarmelJane"]
[Result "1/2-1/2"]
[WhiteElo "2310"]
[BlackElo "2074"]
[TimeControl "300"]
[EndTime "15:45:47 PDT"]
[Termination "Game drawn by repetition"]

1. d4 {[%clk 0:04:57.7]} 1... Nf6 {[%clk 0:04:58.7]} 2. Nf3 {[%clk 0:04:55.6]}
2... e6 {[%clk 0:04:54.5]} 3. c4 {[%clk 0:04:54.2]} 3... b6 {[%clk 0:04:52.7]}
4. g3 {[%clk 0:04:52.6]} 4... Bb7 {[%clk 0:04:50.8]} 5. Bg2 {[%clk 0:04:51.1]}
5... Be7 {[%clk 0:04:50.4]} 6. O-O {[%clk 0:04:49.3]} 6... O-O {[%clk
0:04:48.8]} 7. Nc3 {[%clk 0:04:46.7]} 7... Ne4 {[%clk 0:04:47.9]} 8. Bd2 {[%clk
0:04:45.4]} 8... f5 {[%clk 0:04:46]} 9. d5 {[%clk 0:04:44.1]} 9... Bf6 {[%clk
0:04:35.8]} 10. Qc2 {[%clk 0:04:42.7]} 10... exd5 {[%clk 0:04:29.3]} 11. cxd5
{[%clk 0:04:34.5]} 11... d6 {[%clk 0:04:27.4]} 12. Nxe4 {[%clk 0:04:29.5]} 12...
fxe4 {[%clk 0:04:25.6]} 13. Qxe4 {[%clk 0:04:28.6]} 13... Nd7 {[%clk 0:04:19.2]}
14. Nd4 {[%clk 0:04:09.9]} 14... Nc5 {[%clk 0:04:16.3]} 15. Qg4 {[%clk
0:04:03.3]} 15... Bc8 {[%clk 0:04:07.8]} 16. Ne6 {[%clk 0:03:58.5]} 16... Nxe6
{[%clk 0:03:43.9]} 17. dxe6 {[%clk 0:03:56.6]} 17... Rb8 {[%clk 0:03:39.3]} 18.
Bd5 {[%clk 0:03:44.5]} 18... Qe7 {[%clk 0:03:38.2]} 19. Rac1 {[%clk 0:03:24.1]}
19... Kh8 {[%clk 0:03:28.4]} 20. Bc3 {[%clk 0:03:15.6]} 20... Ba6 {[%clk
0:03:23.9]} 21. Rfe1 {[%clk 0:03:07.9]} 21... Rbc8 {[%clk 0:03:14.4]} 22. e4
{[%clk 0:02:59.1]} 22... c6 {[%clk 0:03:12.4]} 23. Bb3 {[%clk 0:02:57.6]} 23...
c5 {[%clk 0:02:46.3]} 24. Bd5 {[%clk 0:02:55.8]} 24... Rce8 {[%clk 0:02:17.9]}
25. f4 {[%clk 0:02:51.2]} 25... Bc8 {[%clk 0:02:17]} 26. f5 {[%clk 0:02:48.5]}
26... Bb7 {[%clk 0:02:13.8]} 27. h4 {[%clk 0:02:44.4]} 27... Bxc3 {[%clk
0:02:01.5]} 28. bxc3 {[%clk 0:02:28.4]} 28... Rf6 {[%clk 0:01:57]} 29. c4 {[%clk
0:02:15]} 29... g6 {[%clk 0:01:48]} 30. Rf1 {[%clk 0:01:50.9]} 30... Bxd5 {[%clk
0:01:42]} 31. cxd5 {[%clk 0:01:49.3]} 31... gxf5 {[%clk 0:01:35.1]} 32. Rxf5
{[%clk 0:01:47.5]} 32... Rg8 {[%clk 0:01:31.5]} 33. Rg5 {[%clk 0:01:40.7]} 33...
Rfg6 {[%clk 0:01:26.8]} 34. Rf1 {[%clk 0:01:33.5]} 34... Rxg5 {[%clk 0:01:24.9]}
35. hxg5 {[%clk 0:01:32.3]} 35... Rxg5 {[%clk 0:00:54.5]} 36. Rf8+ {[%clk
0:01:19.6]} 36... Kg7 {[%clk 0:00:48.9]} 37. Rf7+ {[%clk 0:01:17.5]} 37... Qxf7
{[%clk 0:00:45.5]} 38. Qxg5+ {[%clk 0:01:16]} 38... Qg6 {[%clk 0:00:43.6]} 39.
Qh4 {[%clk 0:01:01.1]} 39... Qf6 {[%clk 0:00:39.2]} 40. e7 {[%clk 0:00:56]}
40... Qxh4 {[%clk 0:00:37.2]} 41. e8=Q {[%clk 0:00:45.2]} 41... Qxg3+ {[%clk
0:00:35.4]} 42. Kf1 {[%clk 0:00:43.7]} 42... Qf3+ {[%clk 0:00:34.5]} 43. Ke1
{[%clk 0:00:42.2]} 43... Qe3+ {[%clk 0:00:34]} 44. Kd1 {[%clk 0:00:41.1]} 44...
Qd3+ {[%clk 0:00:33.6]} 45. Kc1 {[%clk 0:00:39.6]} 45... Qc3+ {[%clk 0:00:33.2]}
46. Kb1 {[%clk 0:00:38.2]} 46... Qd3+ {[%clk 0:00:32]} 47. Kc1 {[%clk 0:00:37]}
47... Qc3+ {[%clk 0:00:30.9]} 48. Kb1 {[%clk 0:00:36]} 48... Qd3+ {[%clk
0:00:29.1]} 49. Kc1 {[%clk 0:00:34.8]} 1/2-1/2

[Event "Live Chess"]
[Site "Chess.com"]
[Date "2024.06.01"]
[Round "-"]
[White "McFim"]
[Black "updatedopenings2024"]
[Result "0-1"]
[WhiteElo "1632"]
[BlackElo "1993"]
[TimeControl "300"]
[EndTime "15:45:47 PDT"]
[Termination "updatedopenings2024 won by resignation"]

1. e4 {[%clk 0:04:57]} 1... c6 {[%clk 0:04:59.5]} 2. d4 {[%clk 0:04:55.2]} 2...
d5 {[%clk 0:04:59.4]} 3. exd5 {[%clk 0:04:54.8]} 3... cxd5 {[%clk 0:04:59.3]} 4.
Bd3 {[%clk 0:04:53.9]} 4... Nc6 {[%clk 0:04:58.7]} 5. c3 {[%clk 0:04:53.3]} 5...
Nf6 {[%clk 0:04:58.1]} 6. Bf4 {[%clk 0:04:52.1]} 6... Bg4 {[%clk 0:04:57.3]} 7.
Nf3 {[%clk 0:04:51]} 7... e6 {[%clk 0:04:55.3]} 8. O-O {[%clk 0:04:49.9]} 8...
Bd6 {[%clk 0:04:54.8]} 9. Bxd6 {[%clk 0:04:48.6]} 9... Qxd6 {[%clk 0:04:54.7]}
10. Nbd2 {[%clk 0:04:48.1]} 10... O-O {[%clk 0:04:54.1]} 11. Qe1 {[%clk
0:04:47.3]} 11... Rac8 {[%clk 0:04:53.3]} 12. Ne5 {[%clk 0:04:45.9]} 12... Bh5
{[%clk 0:04:52.5]} 13. Ndf3 {[%clk 0:04:44.6]} 13... a6 {[%clk 0:04:51.5]} 14.
a4 {[%clk 0:04:43.2]} 14... Bg6 {[%clk 0:04:49]} 15. Bxg6 {[%clk 0:04:41.9]}
15... hxg6 {[%clk 0:04:48.9]} 16. h3 {[%clk 0:04:41.3]} 16... Qc7 {[%clk
0:04:47]} 17. Qe3 {[%clk 0:04:35.9]} 17... b5 {[%clk 0:04:45.5]} 18. axb5 {[%clk
0:04:33.5]} 18... axb5 {[%clk 0:04:45.4]} 19. b4 {[%clk 0:04:30.7]} 19... Nxe5
{[%clk 0:04:39.6]} 20. dxe5 {[%clk 0:04:28]} 20... Ne4 {[%clk 0:04:37.7]} 21.
Nd4 {[%clk 0:04:18.2]} 21... Qxe5 {[%clk 0:04:30.4]} 22. Nxb5 {[%clk 0:04:14.4]}
22... Qb8 {[%clk 0:04:26.5]} 23. Ra5 {[%clk 0:04:05.1]} 23... Rc4 {[%clk
0:04:16.8]} 24. f3 {[%clk 0:03:59.9]} 24... Nd6 {[%clk 0:04:13.5]} 25. Nxd6
{[%clk 0:03:55.2]} 25... Qxd6 {[%clk 0:04:13.4]} 26. Rb1 {[%clk 0:03:52.6]}
26... Rfc8 {[%clk 0:04:12.6]} 27. Rb3 {[%clk 0:03:45.4]} 27... d4 {[%clk
0:04:07.1]} 28. cxd4 {[%clk 0:03:42.2]} 28... Rc1+ {[%clk 0:04:05.5]} 29. Kf2
{[%clk 0:03:41.3]} 29... R8c2+ {[%clk 0:04:04.7]} 0-1

[Event "Live Chess"]
[Site "Chess.com"]
[Date "2024.06.01"]
[Round "-"]
[White "katoma"]
[Black "stevochess11"]
[Result "1/2-1/2"]
[WhiteElo "2044"]
[BlackElo "1707"]
[TimeControl "300"]
[EndTime "15:45:50 PDT"]
[Termination "Game drawn by agreement"]

1. e4 {[%clk 0:04:57.5]} 1... c5 {[%clk 0:04:57.6]} 2. Nf3 {[%clk 0:04:55]} 2...
g6 {[%clk 0:04:49.6]} 3. d4 {[%clk 0:04:51.1]} 3... cxd4 {[%clk 0:04:48.6]} 4.
Nxd4 {[%clk 0:04:47.9]} 4... Nc6 {[%clk 0:04:47.6]} 5. Nc3 {[%clk 0:04:44.1]}
5... Bg7 {[%clk 0:04:46.1]} 6. Be3 {[%clk 0:04:43.1]} 6... Nf6 {[%clk
0:04:44.8]} 7. Bc4 {[%clk 0:04:41.9]} 7... O-O {[%clk 0:04:42.2]} 8. Bb3 {[%clk
0:04:37.6]} 8... a5 {[%clk 0:04:38.1]} 9. Ndb5 {[%clk 0:04:05.6]} 9... d6 {[%clk
0:04:14.7]} 10. f3 {[%clk 0:03:50.3]} 10... Bd7 {[%clk 0:04:02.1]} 11. Na4
{[%clk 0:03:26.9]} 11... Nb4 {[%clk 0:03:45.1]} 12. Nbc3 {[%clk 0:02:59]} 12...
Bxa4 {[%clk 0:03:21.6]} 13. Bxa4 {[%clk 0:02:45.7]} 13... Nd7 {[%clk 0:03:12.4]}
14. Bxd7 {[%clk 0:02:33.6]} 14... Qxd7 {[%clk 0:03:11.8]} 15. a3 {[%clk
0:02:32.8]} 15... Nc6 {[%clk 0:03:09.3]} 16. O-O {[%clk 0:02:25.5]} 16... Rac8
{[%clk 0:03:05.7]} 17. Nd5 {[%clk 0:02:20.1]} 17... Qd8 {[%clk 0:02:58.8]} 18.
c3 {[%clk 0:02:14.7]} 18... Ne5 {[%clk 0:02:55.7]} 19. Bb6 {[%clk 0:02:09.1]}
19... Qd7 {[%clk 0:02:50]} 20. Bxa5 {[%clk 0:02:04.7]} 20... Nc4 {[%clk
0:02:44.3]} 21. Nb6 {[%clk 0:01:57.8]} 21... Nxb6 {[%clk 0:02:42.3]} 22. Bxb6
{[%clk 0:01:56.6]} 22... Qb5 {[%clk 0:02:39.8]} 23. Bd4 {[%clk 0:01:51.9]} 23...
Qxb2 {[%clk 0:02:33.2]} 24. Rb1 {[%clk 0:01:45.2]} 24... Bxd4+ {[%clk
0:02:23.5]} 25. cxd4 {[%clk 0:01:09.8]} 25... Qxa3 {[%clk 0:02:17.1]} 26. Rxb7
{[%clk 0:01:08.3]} 26... Qe3+ {[%clk 0:02:09.9]} 27. Kh1 {[%clk 0:01:02.1]}
27... Qg5 {[%clk 0:02:00.8]} 28. f4 {[%clk 0:00:52.1]} 28... Qf6 {[%clk
0:01:48.7]} 29. e5 {[%clk 0:00:46.7]} 29... dxe5 {[%clk 0:01:47.6]} 30. dxe5
{[%clk 0:00:36.4]} 30... Qh4 {[%clk 0:01:34.6]} 31. Qe1 {[%clk 0:00:32.7]} 31...
Qxe1 {[%clk 0:01:27]} 32. Rxe1 {[%clk 0:00:31.7]} 32... e6 {[%clk 0:01:23.9]}
33. h4 {[%clk 0:00:29]} 33... h5 {[%clk 0:01:17.6]} 34. Rd1 {[%clk 0:00:26.5]}
34... Rfd8 {[%clk 0:01:13.3]} 35. Rxd8+ {[%clk 0:00:24.6]} 35... Rxd8 {[%clk
0:01:12.1]} 36. Kh2 {[%clk 0:00:22.1]} 1/2-1/2

[Event "Live Chess"]
[Site "Chess.com"]
[Date "2024.06.01"]
[Round "-"]
[White "KeithArkell"]
[Black "Queensandpawns"]
[Result "1/2-1/2"]
[WhiteElo "2409"]
[BlackElo "2344"]
[TimeControl "300"]
[EndTime "15:46:01 PDT"]
[Termination "Game drawn by agreement"]

1. d4 {[%clk 0:04:55.4]} 1... Nc6 {[%clk 0:04:40.8]} 2. d5 {[%clk 0:04:53.5]}
2... Ne5 {[%clk 0:04:40.4]} 3. Nf3 {[%clk 0:04:52.9]} 3... Nxf3+ {[%clk
0:04:39.1]} 4. exf3 {[%clk 0:04:51.7]} 4... Nf6 {[%clk 0:04:38.8]} 5. Nc3 {[%clk
0:04:50.4]} 5... c6 {[%clk 0:04:37.7]} 6. Bg5 {[%clk 0:04:47.2]} 6... Nxd5
{[%clk 0:04:34.5]} 7. Nxd5 {[%clk 0:04:45.9]} 7... Qa5+ {[%clk 0:04:33.7]} 8. c3
{[%clk 0:04:25.1]} 8... Qxd5 {[%clk 0:04:29.5]} 9. Qxd5 {[%clk 0:04:24.2]} 9...
cxd5 {[%clk 0:04:29.4]} 10. O-O-O {[%clk 0:04:23.3]} 10... f6 {[%clk 0:04:28.1]}
11. Be3 {[%clk 0:04:18]} 11... e6 {[%clk 0:04:27.4]} 12. f4 {[%clk 0:04:17.6]}
12... b6 {[%clk 0:04:24.8]} 13. f5 {[%clk 0:04:09.6]} 13... Bb7 {[%clk
0:04:22.8]} 14. Bb5 {[%clk 0:04:04]} 14... a6 {[%clk 0:04:18.5]} 15. Ba4 {[%clk
0:04:02.6]} 15... b5 {[%clk 0:04:18.1]} 16. Bb3 {[%clk 0:04:01.8]} 16... Bd6
{[%clk 0:04:15]} 17. f4 {[%clk 0:03:59.1]} 17... Ke7 {[%clk 0:04:13.8]} 18. fxe6
{[%clk 0:03:57.7]} 18... dxe6 {[%clk 0:04:13.7]} 19. f5 {[%clk 0:03:57.2]} 19...
exf5 {[%clk 0:04:02.3]} 20. Bxd5 {[%clk 0:03:55.5]} 20... Bxd5 {[%clk
0:04:02.2]} 21. Rxd5 {[%clk 0:03:54.5]} 21... Be5 {[%clk 0:04:02.1]} 22. Bc5+
{[%clk 0:03:43.1]} 1/2-1/2

[Event "Live Chess"]
[Site "Chess.com"]
[Date "2024.06.01"]
[Round "-"]
[White "KwikPhoenix"]
[Black "GEMdzq"]
[Result "0-1"]
[WhiteElo "2453"]
[BlackElo "2301"]
[TimeControl "300"]
[EndTime "15:46:02 PDT"]
[Termination "GEMdzq won by checkmate"]

1. b3 {[%clk 0:04:58.4]} 1... e5 {[%clk 0:04:58.1]} 2. Bb2 {[%clk 0:04:58.3]}
2... Nc6 {[%clk 0:04:56.8]} 3. e3 {[%clk 0:04:57.9]} 3... Nf6 {[%clk 0:04:55.2]}
4. Bb5 {[%clk 0:04:57.2]} 4... d6 {[%clk 0:04:42.5]} 5. d4 {[%clk 0:04:54]} 5...
exd4 {[%clk 0:04:40.4]} 6. exd4 {[%clk 0:04:53.9]} 6... Be7 {[%clk 0:04:39]} 7.
Nf3 {[%clk 0:04:47.2]} 7... O-O {[%clk 0:04:37.5]} 8. O-O {[%clk 0:04:46.9]}
8... d5 {[%clk 0:04:36.4]} 9. h3 {[%clk 0:04:44.2]} 9... a6 {[%clk 0:04:35.4]}
10. Bxc6 {[%clk 0:04:43.2]} 10... bxc6 {[%clk 0:04:35.3]} 11. Ne5 {[%clk
0:04:42.8]} 11... Bb7 {[%clk 0:04:22.4]} 12. Nd2 {[%clk 0:04:28.1]} 12... Re8
{[%clk 0:04:11.9]} 13. c4 {[%clk 0:04:22.8]} 13... Bd6 {[%clk 0:04:09.3]} 14.
Ndf3 {[%clk 0:04:18.6]} 14... c5 {[%clk 0:04:04.3]} 15. Rc1 {[%clk 0:04:07.8]}
15... dxc4 {[%clk 0:04:01.6]} 16. Nxc4 {[%clk 0:03:57.6]} 16... Bf4 {[%clk
0:04:00.2]} 17. Rc2 {[%clk 0:03:50.6]} 17... cxd4 {[%clk 0:03:56.1]} 18. Bxd4
{[%clk 0:03:47.5]} 18... Be4 {[%clk 0:03:39.3]} 19. Rb2 {[%clk 0:03:39.4]} 19...
Qd5 {[%clk 0:03:29.5]} 20. Bxf6 {[%clk 0:03:10]} 20... Bxf3 {[%clk 0:03:15.9]}
21. Qxd5 {[%clk 0:03:01.1]} 21... Bxd5 {[%clk 0:03:15.8]} 22. Bd4 {[%clk
0:03:00.2]} 22... Re4 {[%clk 0:03:02.5]} 23. Be3 {[%clk 0:02:34.1]} 23... Bxc4
{[%clk 0:02:58.1]} 24. bxc4 {[%clk 0:02:33]} 24... Bxe3 {[%clk 0:02:56.5]} 25.
fxe3 {[%clk 0:02:31.6]} 25... Rxc4 {[%clk 0:02:54.5]} 26. Rd1 {[%clk 0:02:28]}
26... Re8 {[%clk 0:02:40.2]} 27. Kf2 {[%clk 0:02:25.4]} 27... Kf8 {[%clk
0:02:35.6]} 28. Rd7 {[%clk 0:02:21.3]} 28... Rc6 {[%clk 0:02:24.5]} 29. Rbd2
{[%clk 0:02:15.7]} 29... Rf6+ {[%clk 0:02:22.4]} 30. Ke2 {[%clk 0:02:13.2]}
30... Rfe6 {[%clk 0:02:21.7]} 31. R2d3 {[%clk 0:02:10]} 31... Rc6 {[%clk
0:02:16.5]} 32. Kd2 {[%clk 0:02:05.2]} 32... g6 {[%clk 0:02:13]} 33. R3d4 {[%clk
0:02:02]} 33... h5 {[%clk 0:02:02.5]} 34. Kd3 {[%clk 0:01:33.3]} 34... Re7
{[%clk 0:01:49.6]} 35. Rd8+ {[%clk 0:01:27.4]} 35... Kg7 {[%clk 0:01:47.9]} 36.
Ra8 {[%clk 0:01:24.3]} 36... Rb6 {[%clk 0:01:38.5]} 37. a4 {[%clk 0:01:09.7]}
37... Kf6 {[%clk 0:01:36.8]} 38. Rf4+ {[%clk 0:01:07]} 38... Ke6 {[%clk
0:01:32.6]} 39. Re4+ {[%clk 0:01:06.6]} 39... Kd7 {[%clk 0:01:31.8]} 40. Rxe7+
{[%clk 0:01:06.5]} 40... Kxe7 {[%clk 0:01:31.2]} 41. Ra7 {[%clk 0:01:06]} 41...
Kd6 {[%clk 0:01:29.1]} 42. Ra8 {[%clk 0:01:02.1]} 42... Ke5 {[%clk 0:01:16]} 43.
Re8+ {[%clk 0:01:00.4]} 43... Re6 {[%clk 0:01:11.1]} 44. Rc8 {[%clk 0:00:57.3]}
44... Kd6 {[%clk 0:01:09.4]} 45. Rd8+ {[%clk 0:00:55.5]} 45... Kc5 {[%clk
0:01:08.2]} 46. Rd7 {[%clk 0:00:53.4]} 46... Rd6+ {[%clk 0:01:05.5]} 47. Rxd6
{[%clk 0:00:53]} 47... cxd6 {[%clk 0:01:04]} 48. Kc3 {[%clk 0:00:52.2]} 48... d5
{[%clk 0:00:59.4]} 49. Kb3 {[%clk 0:00:49.8]} 49... h4 {[%clk 0:00:54.5]} 50.
Kc3 {[%clk 0:00:46.6]} 50... a5 {[%clk 0:00:52.9]} 51. Kb3 {[%clk 0:00:38.3]}
51... f5 {[%clk 0:00:48.6]} 52. Kc3 {[%clk 0:00:34.6]} 52... g5 {[%clk
0:00:47.9]} 53. Kd3 {[%clk 0:00:31]} 53... g4 {[%clk 0:00:38.6]} 54. Kc3 {[%clk
0:00:26.4]} 54... g3 {[%clk 0:00:33.8]} 55. Kd3 {[%clk 0:00:23.7]} 55... Kb4
{[%clk 0:00:32.9]} 56. Kd4 {[%clk 0:00:23.2]} 56... Kxa4 {[%clk 0:00:32.4]} 57.
Kxd5 {[%clk 0:00:23.1]} 57... Kb3 {[%clk 0:00:31.6]} 58. Ke5 {[%clk 0:00:21]}
58... a4 {[%clk 0:00:31.1]} 59. Kxf5 {[%clk 0:00:20.9]} 59... a3 {[%clk
0:00:30.9]} 60. Kg4 {[%clk 0:00:19.8]} 60... a2 {[%clk 0:00:30.8]} 61. Kxh4
{[%clk 0:00:19.7]} 61... a1=Q {[%clk 0:00:30.4]} 62. Kxg3 {[%clk 0:00:19.6]}
62... Qe1+ {[%clk 0:00:29]} 63. Kf3 {[%clk 0:00:19.1]} 63... Qf1+ {[%clk
0:00:28]} 64. Kg3 {[%clk 0:00:17.3]} 64... Qe2 {[%clk 0:00:27.2]} 65. Kf4 {[%clk
0:00:16.3]} 65... Qxg2 {[%clk 0:00:26.3]} 66. e4 {[%clk 0:00:16.2]} 66... Qf2+
{[%clk 0:00:24.5]} 67. Ke5 {[%clk 0:00:15.3]} 67... Qg3+ {[%clk 0:00:22.9]} 68.
Kd5 {[%clk 0:00:14.6]} 68... Qd3+ {[%clk 0:00:20.7]} 69. Ke5 {[%clk 0:00:13.5]}
69... Kc4 {[%clk 0:00:20.1]} 70. h4 {[%clk 0:00:13.4]} 70... Qh3 {[%clk
0:00:18.9]} 71. h5 {[%clk 0:00:13.3]} 71... Qxh5+ {[%clk 0:00:18.1]} 72. Kf4
{[%clk 0:00:13.1]} 72... Kd4 {[%clk 0:00:17.4]} 73. Kg3 {[%clk 0:00:10.8]} 73...
Qe5+ {[%clk 0:00:17.3]} 74. Kg4 {[%clk 0:00:09.8]} 74... Kxe4 {[%clk 0:00:16.9]}
75. Kh3 {[%clk 0:00:09.7]} 75... Qg7 {[%clk 0:00:15.8]} 76. Kh2 {[%clk
0:00:08.4]} 76... Kf3 {[%clk 0:00:15.3]} 77. Kh1 {[%clk 0:00:08.3]} 77... Qg2#
{[%clk 0:00:14.3]} 0-1

[Event "Live Chess"]
[Site "Chess.com"]
[Date "2024.06.01"]
[Round "-"]
[White "TheSmoulderingMaster"]
[Black "AlexanderMatlak"]
[Result "0-1"]
[WhiteElo "1727"]
[BlackElo "2394"]
[TimeControl "300"]
[EndTime "15:46:04 PDT"]
[Termination "AlexanderMatlak won by resignation"]

1. e4 {[%clk 0:04:57.3]} 1... c5 {[%clk 0:04:58.8]} 2. Nf3 {[%clk 0:04:55.4]}
2... d6 {[%clk 0:04:58.2]} 3. d4 {[%clk 0:04:53.9]} 3... cxd4 {[%clk 0:04:58.1]}
4. Nxd4 {[%clk 0:04:52.5]} 4... Nf6 {[%clk 0:04:57.3]} 5. Nc3 {[%clk 0:04:51.2]}
5... a6 {[%clk 0:04:56.7]} 6. Be3 {[%clk 0:04:50]} 6... e6 {[%clk 0:04:56.1]} 7.
f3 {[%clk 0:04:49.3]} 7... b5 {[%clk 0:04:54.4]} 8. Qd2 {[%clk 0:04:48.4]} 8...
Bb7 {[%clk 0:04:52.8]} 9. a3 {[%clk 0:04:47.2]} 9... Nbd7 {[%clk 0:04:51.8]} 10.
O-O-O {[%clk 0:04:45.6]} 10... Rc8 {[%clk 0:04:50.2]} 11. g4 {[%clk 0:04:44.5]}
11... Nb6 {[%clk 0:04:49.3]} 12. h4 {[%clk 0:04:43.3]} 12... Nfd7 {[%clk
0:04:47.8]} 13. h5 {[%clk 0:04:41.8]} 13... Ne5 {[%clk 0:04:46.8]} 14. Be2
{[%clk 0:04:39.6]} 14... Nbc4 {[%clk 0:04:44.8]} 15. Bxc4 {[%clk 0:04:38.6]}
15... Nxc4 {[%clk 0:04:44.7]} 16. Qe2 {[%clk 0:04:37.6]} 16... Qc7 {[%clk
0:04:43.6]} 17. g5 {[%clk 0:04:34.5]} 17... Nxa3 {[%clk 0:04:35.8]} 18. g6
{[%clk 0:04:28.3]} 18... b4 {[%clk 0:04:34.4]} 19. gxf7+ {[%clk 0:04:26.2]}
19... Kxf7 {[%clk 0:04:34.3]} 20. Qg2 {[%clk 0:03:46.7]} 20... Nxc2 {[%clk
0:04:15.4]} 21. Nxe6 {[%clk 0:03:44.7]} 21... Kxe6 {[%clk 0:04:06.9]} 22. Qg4+
{[%clk 0:03:43.3]} 22... Kf7 {[%clk 0:03:58.7]} 23. Qf5+ {[%clk 0:03:40.7]}
23... Ke8 {[%clk 0:03:57.8]} 24. Qe6+ {[%clk 0:03:19.8]} 24... Qe7 {[%clk
0:03:50.3]} 25. Qf5 {[%clk 0:03:14.6]} 25... Nxe3 {[%clk 0:03:45.6]} 26. Qa5
{[%clk 0:03:02]} 26... Qxe4 {[%clk 0:03:41.1]} 0-1